[Event "*** Titled Tuesday Blitz"]
[Site "Chess.com"]
[Date "2018.06.05"]
[Round "6"]
[White "petrpalachev"]
[Black "Parhamov"]
[Result "1-0"]
[WhiteElo "2708"]
[BlackElo "2820"]
[TimeControl "180+2"]
[EndTime "14:28:05 PDT"]
[Termination "petrpalachev won by resignation"]

1. d4 {[%clk 0:03:01.9]} 1... Nf6 {[%clk 0:02:59.3]} 2. c4 {[%clk 0:03:03.4]}
2... e6 {[%clk 0:03:00.2]} 3. Nf3 {[%clk 0:03:03.9]} 3... d5 {[%clk 0:02:59.3]}
4. Nc3 {[%clk 0:03:04.9]} 4... Nbd7 {[%clk 0:02:58.9]} 5. Bf4 {[%clk 0:03:04.6]}
5... c6 {[%clk 0:02:52.2]} 6. e3 {[%clk 0:03:05.4]} 6... Be7 {[%clk 0:02:53]} 7.
h3 {[%clk 0:03:05.5]} 7... O-O {[%clk 0:02:54.2]} 8. c5 {[%clk 0:03:05.7]} 8...
b6 {[%clk 0:02:54.2]} 9. b4 {[%clk 0:03:06.4]} 9... a5 {[%clk 0:02:53.2]} 10. a3
{[%clk 0:03:07.6]} 10... Ne4 {[%clk 0:02:22.3]} 11. Nxe4 {[%clk 0:03:01.5]}
11... dxe4 {[%clk 0:02:23.4]} 12. Ne5 {[%clk 0:03:02.6]} 12... Nxe5 {[%clk
0:02:22.6]} 13. Bxe5 {[%clk 0:03:04]} 13... f6 {[%clk 0:02:11.6]} 14. Bg3 {[%clk
0:03:02.7]} 14... Ba6 {[%clk 0:02:09.8]} 15. Bxa6 {[%clk 0:03:03.4]} 15... Rxa6
{[%clk 0:02:10.8]} 16. O-O {[%clk 0:03:05.3]} 16... b5 {[%clk 0:02:06.5]} 17. a4
{[%clk 0:02:59.3]} 17... axb4 {[%clk 0:02:01.2]} 18. axb5 {[%clk 0:02:59.8]}
18... Rxa1 {[%clk 0:02:02]} 19. Qxa1 {[%clk 0:03:01.7]} 19... cxb5 {[%clk
0:02:03]} 20. Rb1 {[%clk 0:02:55.7]} 20... e5 {[%clk 0:02:02.1]} 21. Rxb4 {[%clk
0:02:53.8]} 21... exd4 {[%clk 0:02:03.2]} 22. exd4 {[%clk 0:02:55.7]} 22... f5
{[%clk 0:01:49.1]} 23. Qa2+ {[%clk 0:02:54.7]} 23... Kh8 {[%clk 0:01:49.8]} 24.
Be5 {[%clk 0:02:56.3]} 24... Bf6 {[%clk 0:01:38.7]} 25. Qe6 {[%clk 0:02:57.6]}
25... Qa5 {[%clk 0:01:26.6]} 26. Rb1 {[%clk 0:02:43.6]} 26... h6 {[%clk
0:00:45.2]} 27. Qxf5 {[%clk 0:02:39.2]} 27... Qa2 {[%clk 0:00:39.4]} 28. Qxe4
{[%clk 0:02:38]} 28... Bxe5 {[%clk 0:00:39.5]} 29. dxe5 {[%clk 0:02:39.6]} 29...
Qxf2+ {[%clk 0:00:40.7]} 30. Kh1 {[%clk 0:02:38.2]} 30... Qxc5 {[%clk
0:00:41.9]} 31. e6 {[%clk 0:02:37.1]} 31... Re8 {[%clk 0:00:41.8]} 32. Qg6
{[%clk 0:02:05.8]} 32... Qc6 {[%clk 0:00:35.2]} 33. Re1 {[%clk 0:02:07]} 33...
b4 {[%clk 0:00:36.1]} 34. Qb1 {[%clk 0:02:04]} 34... Qb7 {[%clk 0:00:22.6]} 35.
Qb3 {[%clk 0:02:01.5]} 35... Qe7 {[%clk 0:00:19.5]} 36. Re4 {[%clk 0:02:01.3]}
36... Rb8 {[%clk 0:00:20.7]} 37. h4 {[%clk 0:01:59.2]} 37... Kg8 {[%clk
0:00:20.9]} 38. g3 {[%clk 0:01:53.2]} 38... Kh8 {[%clk 0:00:22.3]} 39. Kh2
{[%clk 0:01:54]} 39... Rb5 {[%clk 0:00:23.1]} 40. Rd4 {[%clk 0:01:43.7]} 40...
Rb7 {[%clk 0:00:23.5]} 41. Kh3 {[%clk 0:01:39.8]} 41... Rb6 {[%clk 0:00:22.3]}
42. Re4 {[%clk 0:01:41.3]} 42... Qb7 {[%clk 0:00:20.5]} 43. Qe3 {[%clk
0:01:39.6]} 43... Qa8 {[%clk 0:00:16.4]} 44. e7 {[%clk 0:01:37.4]} 44... Qc8+
{[%clk 0:00:14.4]} 45. g4 {[%clk 0:01:36.7]} 45... Kh7 {[%clk 0:00:06.5]} 46.
e8=Q {[%clk 0:01:37.2]} 46... Qc2 {[%clk 0:00:07.6]} 47. Rd4 {[%clk 0:01:31.7]}
47... Rg6 {[%clk 0:00:07.7]} 48. Q8e4 {[%clk 0:01:30.5]} 48... Qd1 {[%clk
0:00:08.8]} 49. h5 {[%clk 0:01:27.4]} 49... Qf1+ {[%clk 0:00:10]} 50. Kg3 {[%clk
0:01:28.9]} 50... Kh8 {[%clk 0:00:10.2]} 51. Qe8+ {[%clk 0:01:29.3]} 1-0

[Event "*** Titled Tuesday Blitz"]
[Site "Chess.com"]
[Date "2018.06.05"]
[Round "6"]
[White "maximlavrov"]
[Black "chessdude"]
[Result "1-0"]
[WhiteElo "2481"]
[BlackElo "2466"]
[TimeControl "180+2"]
[EndTime "14:28:09 PDT"]
[Termination "maximlavrov won by resignation"]

1. g3 {[%clk 0:02:49.7]} 1... c5 {[%clk 0:02:59]} 2. Nf3 {[%clk 0:02:50.4]} 2...
Nc6 {[%clk 0:02:56.2]} 3. Bg2 {[%clk 0:02:52.3]} 3... e5 {[%clk 0:02:57.1]} 4.
O-O {[%clk 0:02:53.3]} 4... d5 {[%clk 0:02:58]} 5. c4 {[%clk 0:02:53.5]} 5... d4
{[%clk 0:02:55.9]} 6. e3 {[%clk 0:02:54.7]} 6... Nf6 {[%clk 0:02:50]} 7. exd4
{[%clk 0:02:55.5]} 7... exd4 {[%clk 0:02:49.7]} 8. d3 {[%clk 0:02:55]} 8... Be7
{[%clk 0:02:49.7]} 9. Re1 {[%clk 0:02:54.9]} 9... O-O {[%clk 0:02:50.6]} 10. Bf4
{[%clk 0:02:56.3]} 10... Bd6 {[%clk 0:02:51.6]} 11. Ne5 {[%clk 0:01:15.2]} 11...
Bxe5 {[%clk 0:02:49.3]} 12. Bxe5 {[%clk 0:01:15.1]} 12... Ng4 {[%clk 0:02:50.7]}
13. Bf4 {[%clk 0:01:14.8]} 13... g5 {[%clk 0:02:48.3]} 14. Bc1 {[%clk
0:01:15.6]} 14... Qf6 {[%clk 0:02:49.7]} 15. Qe2 {[%clk 0:01:08.2]} 15... Bd7
{[%clk 0:01:54.4]} 16. Nd2 {[%clk 0:01:08.8]} 16... Rae8 {[%clk 0:01:53.1]} 17.
Ne4 {[%clk 0:01:10]} 17... Qg6 {[%clk 0:01:50.6]} 18. Qf1 {[%clk 0:01:05.3]}
18... Nb4 {[%clk 0:01:39.6]} 19. Nxc5 {[%clk 0:01:04.1]} 19... Bc6 {[%clk
0:01:34.6]} 20. Bd2 {[%clk 0:00:58.9]} 20... Nc2 {[%clk 0:01:20.8]} 21. Rxe8
{[%clk 0:00:55.2]} 21... Rxe8 {[%clk 0:01:22.7]} 22. Rc1 {[%clk 0:00:56.1]}
22... Bxg2 {[%clk 0:00:37.8]} 23. Qxg2 {[%clk 0:00:56.9]} 23... Re2 {[%clk
0:00:39.2]} 24. Rxc2 {[%clk 0:00:35.9]} 24... Qf5 {[%clk 0:00:17.7]} 25. Ne4
{[%clk 0:00:32.9]} 25... Ne3 {[%clk 0:00:18.9]} 26. g4 {[%clk 0:00:21.9]} 26...
Qg6 {[%clk 0:00:12.5]} 27. Qf3 {[%clk 0:00:21]} 27... Nxc2 {[%clk 0:00:08.8]}
28. Qxe2 {[%clk 0:00:21.5]} 28... f5 {[%clk 0:00:07.7]} 29. gxf5 {[%clk
0:00:22.3]} 29... Qxf5 {[%clk 0:00:08.8]} 30. Bxg5 {[%clk 0:00:23.7]} 30... Nb4
{[%clk 0:00:08.7]} 31. a3 {[%clk 0:00:24.5]} 31... Nc6 {[%clk 0:00:09.5]} 32.
Kg2 {[%clk 0:00:24.9]} 32... Ne5 {[%clk 0:00:10.9]} 33. Bh4 {[%clk 0:00:24.7]}
33... Kg7 {[%clk 0:00:11.9]} 34. Bg3 {[%clk 0:00:25.9]} 34... Ng6 {[%clk
0:00:12.9]} 35. Nd6 {[%clk 0:00:24.4]} 35... Kh6 {[%clk 0:00:11.6]} 36. Nxf5+
{[%clk 0:00:24.8]} 1-0

[Event "*** Titled Tuesday Blitz"]
[Site "Chess.com"]
[Date "2018.06.05"]
[Round "6"]
[White "Galileo22"]
[Black "julinha97"]
[Result "1-0"]
[WhiteElo "2351"]
[BlackElo "2204"]
[TimeControl "180+2"]
[EndTime "14:28:12 PDT"]
[Termination "Galileo22 won by checkmate"]

1. Nf3 {[%clk 0:03:01.9]} 1... Nf6 {[%clk 0:02:56.8]} 2. g3 {[%clk 0:03:02.8]}
2... g6 {[%clk 0:02:58.1]} 3. Bg2 {[%clk 0:03:04.2]} 3... Bg7 {[%clk 0:02:59.6]}
4. O-O {[%clk 0:03:05.6]} 4... O-O {[%clk 0:03:01.1]} 5. d3 {[%clk 0:03:06.8]}
5... d6 {[%clk 0:03:00.7]} 6. e4 {[%clk 0:03:07.8]} 6... e5 {[%clk 0:03:00]} 7.
Nbd2 {[%clk 0:03:09]} 7... Nc6 {[%clk 0:03:00.9]} 8. a4 {[%clk 0:03:09.1]} 8...
h6 {[%clk 0:02:55.8]} 9. c3 {[%clk 0:03:05.6]} 9... Re8 {[%clk 0:02:45.5]} 10.
Re1 {[%clk 0:02:55.3]} 10... Bd7 {[%clk 0:02:34.3]} 11. a5 {[%clk 0:02:54.3]}
11... a6 {[%clk 0:02:33.4]} 12. Nc4 {[%clk 0:02:48.9]} 12... Be6 {[%clk
0:02:30.5]} 13. Qc2 {[%clk 0:02:24.3]} 13... Bxc4 {[%clk 0:02:20.2]} 14. dxc4
{[%clk 0:02:24.7]} 14... Qe7 {[%clk 0:02:17.1]} 15. Be3 {[%clk 0:02:20.5]} 15...
Ng4 {[%clk 0:02:11.9]} 16. Bd2 {[%clk 0:02:07.9]} 16... Nb8 {[%clk 0:02:07.4]}
17. Rad1 {[%clk 0:01:52.2]} 17... Nd7 {[%clk 0:02:02.6]} 18. Bc1 {[%clk
0:01:51.9]} 18... b6 {[%clk 0:01:46.1]} 19. axb6 {[%clk 0:01:49.8]} 19... Nxb6
{[%clk 0:01:48]} 20. Bf1 {[%clk 0:01:46.9]} 20... Qe6 {[%clk 0:01:46.1]} 21. h3
{[%clk 0:01:31.2]} 21... Nf6 {[%clk 0:01:44.4]} 22. Nd2 {[%clk 0:01:29.2]} 22...
h5 {[%clk 0:01:41]} 23. h4 {[%clk 0:01:24.4]} 23... Bh6 {[%clk 0:01:36.7]} 24.
Qd3 {[%clk 0:01:10.6]} 24... Nfd7 {[%clk 0:01:32.2]} 25. Qe2 {[%clk 0:01:01.1]}
25... a5 {[%clk 0:01:31.4]} 26. Kh2 {[%clk 0:00:59.5]} 26... Nc5 {[%clk
0:01:18.2]} 27. Bh3 {[%clk 0:00:57.7]} 27... Qe7 {[%clk 0:01:19.6]} 28. Nf1
{[%clk 0:00:48.7]} 28... Bxc1 {[%clk 0:01:17.1]} 29. Rxc1 {[%clk 0:00:50.6]}
29... a4 {[%clk 0:01:17.2]} 30. f3 {[%clk 0:00:37.4]} 30... f6 {[%clk
0:01:17.1]} 31. Ne3 {[%clk 0:00:36.7]} 31... c6 {[%clk 0:01:17.8]} 32. Red1
{[%clk 0:00:35.6]} 32... Red8 {[%clk 0:01:17.8]} 33. Ra1 {[%clk 0:00:31.1]}
33... Nb7 {[%clk 0:01:04.8]} 34. Rg1 {[%clk 0:00:27.9]} 34... Na5 {[%clk
0:01:02.6]} 35. Raf1 {[%clk 0:00:22.9]} 35... Qf7 {[%clk 0:01:01.8]} 36. g4
{[%clk 0:00:21.7]} 36... hxg4 {[%clk 0:00:59.7]} 37. Nxg4 {[%clk 0:00:21.4]}
37... Kh7 {[%clk 0:00:55]} 38. f4 {[%clk 0:00:19]} 38... Qxc4 {[%clk 0:00:49]}
39. Qf3 {[%clk 0:00:19.6]} 39... Rf8 {[%clk 0:00:38.4]} 40. f5 {[%clk
0:00:16.2]} 40... gxf5 {[%clk 0:00:37.1]} 41. Qxf5+ {[%clk 0:00:16.2]} 41... Kh8
{[%clk 0:00:34.4]} 42. Qh5+ {[%clk 0:00:16.6]} 42... Kg7 {[%clk 0:00:31.1]} 43.
Nxf6# {[%clk 0:00:16.7]} 1-0

[Event "*** Titled Tuesday Blitz"]
[Site "Chess.com"]
[Date "2018.06.05"]
[Round "6"]
[White "akashcheck"]
[Black "Velis23"]
[Result "1-0"]
[WhiteElo "2176"]
[BlackElo "2241"]
[TimeControl "180+2"]
[EndTime "14:28:16 PDT"]
[Termination "akashcheck won by resignation"]

1. e4 {[%clk 0:03:01.9]} 1... Nc6 {[%clk 0:03:00.7]} 2. Nf3 {[%clk 0:03:02]}
2... d6 {[%clk 0:03:01.3]} 3. Nc3 {[%clk 0:03:01.8]} 3... Nf6 {[%clk 0:03:01.3]}
4. d4 {[%clk 0:02:59.1]} 4... Bg4 {[%clk 0:03:01.3]} 5. Be2 {[%clk 0:03:00.4]}
5... e6 {[%clk 0:02:58.2]} 6. Be3 {[%clk 0:02:59.6]} 6... d5 {[%clk 0:02:58.1]}
7. e5 {[%clk 0:03:00.2]} 7... Nd7 {[%clk 0:02:55.6]} 8. O-O {[%clk 0:02:58.6]}
8... Ne7 {[%clk 0:02:51.1]} 9. h3 {[%clk 0:02:58.4]} 9... Bxf3 {[%clk
0:02:50.4]} 10. Bxf3 {[%clk 0:02:59.4]} 10... Nf5 {[%clk 0:02:51.4]} 11. Ne2
{[%clk 0:02:57.7]} 11... Nh4 {[%clk 0:02:45.4]} 12. Ng3 {[%clk 0:02:55.9]} 12...
Nxf3+ {[%clk 0:02:45.4]} 13. Qxf3 {[%clk 0:02:57.8]} 13... c5 {[%clk 0:02:44.5]}
14. c3 {[%clk 0:02:58.3]} 14... cxd4 {[%clk 0:02:44.3]} 15. cxd4 {[%clk
0:03:00.2]} 15... g6 {[%clk 0:02:42.1]} 16. Qe2 {[%clk 0:02:59.6]} 16... Bg7
{[%clk 0:02:41.7]} 17. Rac1 {[%clk 0:02:56.6]} 17... O-O {[%clk 0:02:41.1]} 18.
Rc3 {[%clk 0:02:56.7]} 18... Rc8 {[%clk 0:02:30.6]} 19. Rfc1 {[%clk 0:02:56.8]}
19... Rxc3 {[%clk 0:02:26.7]} 20. Rxc3 {[%clk 0:02:58.7]} 20... Qa5 {[%clk
0:02:27.4]} 21. Ra3 {[%clk 0:02:56.5]} 21... Qb6 {[%clk 0:02:25.3]} 22. Rb3
{[%clk 0:02:56.8]} 22... Qc7 {[%clk 0:02:26]} 23. Rc3 {[%clk 0:02:57.3]} 23...
Qb8 {[%clk 0:02:26.6]} 24. Qc2 {[%clk 0:02:57.8]} 24... Nb6 {[%clk 0:02:25.7]}
25. b3 {[%clk 0:02:58.9]} 25... Rc8 {[%clk 0:02:24.1]} 26. Ne2 {[%clk
0:03:00.4]} 26... Bf8 {[%clk 0:02:22.2]} 27. Bd2 {[%clk 0:02:55.8]} 27... Rxc3
{[%clk 0:02:12.7]} 28. Qxc3 {[%clk 0:02:56.9]} 28... Qc8 {[%clk 0:02:11.5]} 29.
Kf1 {[%clk 0:02:42.6]} 29... Qd7 {[%clk 0:02:06.9]} 30. a4 {[%clk 0:02:37]}
30... a6 {[%clk 0:02:06]} 31. Qa5 {[%clk 0:02:35.6]} 31... Nc8 {[%clk
0:02:01.4]} 32. Bb4 {[%clk 0:02:35.5]} 32... Bxb4 {[%clk 0:01:53.9]} 33. Qxb4
{[%clk 0:02:37.4]} 33... Na7 {[%clk 0:01:54.4]} 34. Qc5 {[%clk 0:02:32.1]} 34...
Nc6 {[%clk 0:01:52]} 35. Ke1 {[%clk 0:02:26.9]} 35... Qd8 {[%clk 0:01:52.4]} 36.
g3 {[%clk 0:02:25.3]} 36... h5 {[%clk 0:01:46.5]} 37. h4 {[%clk 0:02:26.3]}
37... Kg7 {[%clk 0:01:44.9]} 38. b4 {[%clk 0:02:18.3]} 38... a5 {[%clk
0:01:38.9]} 39. b5 {[%clk 0:02:19.5]} 39... Nb4 {[%clk 0:01:38.8]} 40. Kf1
{[%clk 0:02:18.1]} 40... b6 {[%clk 0:01:35.8]} 41. Qc3 {[%clk 0:02:17.4]} 41...
Qe7 {[%clk 0:01:33.6]} 42. Nc1 {[%clk 0:02:13.5]} 42... f6 {[%clk 0:01:32.9]}
43. exf6+ {[%clk 0:02:10.8]} 43... Kxf6 {[%clk 0:01:27.4]} 44. Qe3 {[%clk
0:01:45.7]} 44... Qc7 {[%clk 0:01:13.4]} 45. Ne2 {[%clk 0:01:46.3]} 45... Qc4
{[%clk 0:00:54.7]} 46. Kg2 {[%clk 0:01:41.7]} 46... Nc2 {[%clk 0:00:53]} 47.
Qe5+ {[%clk 0:01:33.7]} 47... Kf7 {[%clk 0:00:52.6]} 48. Qf4+ {[%clk 0:01:34.7]}
48... Ke8 {[%clk 0:00:50.9]} 49. Qb8+ {[%clk 0:01:24.5]} 49... Kd7 {[%clk
0:00:45.3]} 50. Nf4 {[%clk 0:01:22.4]} 50... Nxd4 {[%clk 0:00:41.8]} 51. Qxb6
{[%clk 0:01:22.4]} 51... Qc7 {[%clk 0:00:39.3]} 52. Qxd4 {[%clk 0:01:20.6]}
52... Qc4 {[%clk 0:00:39]} 53. Qxc4 {[%clk 0:01:19.9]} 53... dxc4 {[%clk
0:00:39.9]} 54. Ne2 {[%clk 0:01:21.8]} 54... Kd6 {[%clk 0:00:39.7]} 55. Kf3
{[%clk 0:01:22.7]} 55... Kc5 {[%clk 0:00:40.7]} 56. Ke4 {[%clk 0:01:23.7]} 1-0

[Event "*** Titled Tuesday Blitz"]
[Site "Chess.com"]
[Date "2018.06.05"]
[Round "6"]
[White "Paralinch"]
[Black "Matibar"]
[Result "1-0"]
[WhiteElo "2843"]
[BlackElo "2706"]
[TimeControl "180+2"]
[EndTime "14:28:19 PDT"]
[Termination "Paralinch won by resignation"]

1. e4 {[%clk 0:03:01.9]} 1... e6 {[%clk 0:03:00.2]} 2. d4 {[%clk 0:03:02.3]}
2... d5 {[%clk 0:03:02.1]} 3. exd5 {[%clk 0:03:03.8]} 3... exd5 {[%clk
0:03:03.7]} 4. Nf3 {[%clk 0:03:05.7]} 4... Nf6 {[%clk 0:03:03.1]} 5. Bd3 {[%clk
0:03:06.4]} 5... Bd6 {[%clk 0:03:01.3]} 6. Qe2+ {[%clk 0:03:07.6]} 6... Qe7
{[%clk 0:03:02.1]} 7. Qxe7+ {[%clk 0:03:08.3]} 7... Bxe7 {[%clk 0:03:01.7]} 8.
Bf4 {[%clk 0:03:09.4]} 8... c6 {[%clk 0:03:00.3]} 9. Nbd2 {[%clk 0:03:10.5]}
9... Be6 {[%clk 0:03:00.1]} 10. O-O-O {[%clk 0:03:07.6]} 10... h6 {[%clk
0:03:00.3]} 11. Rde1 {[%clk 0:03:05.9]} 11... Nbd7 {[%clk 0:02:58.3]} 12. h3
{[%clk 0:03:03.2]} 12... O-O-O {[%clk 0:02:56]} 13. g4 {[%clk 0:02:58.3]} 13...
Rde8 {[%clk 0:02:24.7]} 14. Bg3 {[%clk 0:02:55.2]} 14... Bd8 {[%clk 0:02:04.5]}
15. Nh4 {[%clk 0:02:53.2]} 15... Nb6 {[%clk 0:01:09.2]} 16. Nf5 {[%clk 0:02:37]}
16... Bxf5 {[%clk 0:01:09.7]} 17. Bxf5+ {[%clk 0:02:37.6]} 17... Nfd7 {[%clk
0:01:11.3]} 18. Re3 {[%clk 0:01:54.3]} 18... g6 {[%clk 0:01:08.2]} 19. Bd3
{[%clk 0:01:50.4]} 19... Bc7 {[%clk 0:01:09.6]} 20. Bxc7 {[%clk 0:01:38.2]}
20... Kxc7 {[%clk 0:01:09.1]} 21. Rf3 {[%clk 0:01:38.2]} 21... Re7 {[%clk
0:01:09.9]} 22. h4 {[%clk 0:01:37.1]} 22... Rhe8 {[%clk 0:01:08.1]} 23. c3
{[%clk 0:01:37.7]} 23... Nc8 {[%clk 0:01:05.3]} 24. g5 {[%clk 0:01:31.1]} 24...
h5 {[%clk 0:01:05.8]} 25. Kc2 {[%clk 0:01:26.5]} 25... Nd6 {[%clk 0:01:06.7]}
26. Rf4 {[%clk 0:01:25.7]} 26... Re1 {[%clk 0:01:07.1]} 27. Rxe1 {[%clk
0:01:24]} 27... Rxe1 {[%clk 0:01:09]} 28. b3 {[%clk 0:01:24.3]} 28... Rh1 {[%clk
0:01:08.9]} 29. c4 {[%clk 0:01:22.3]} 29... b6 {[%clk 0:01:06.2]} 30. b4 {[%clk
0:01:16.8]} 30... dxc4 {[%clk 0:00:50.9]} 31. Nxc4 {[%clk 0:01:16.8]} 31... Nb5
{[%clk 0:00:50]} 32. a4 {[%clk 0:01:05.8]} 32... Nd6 {[%clk 0:00:48.6]} 33. Nxd6
{[%clk 0:00:59]} 33... Kxd6 {[%clk 0:00:50.5]} 34. Rxf7 {[%clk 0:01:00.4]} 34...
Rxh4 {[%clk 0:00:51.5]} 35. Bxg6 {[%clk 0:01:01]} 35... Rxd4 {[%clk 0:00:50.5]}
36. f4 {[%clk 0:00:59.1]} 36... Rxb4 {[%clk 0:00:50.9]} 37. Bf5 {[%clk
0:00:57.5]} 37... Nc5 {[%clk 0:00:50.3]} 38. g6 {[%clk 0:00:53.4]} 38... Rxf4
{[%clk 0:00:49.5]} 39. g7 {[%clk 0:00:41.3]} 39... Rf2+ {[%clk 0:00:50.3]} 40.
Kd1 {[%clk 0:00:41.2]} 40... Rg2 {[%clk 0:00:52.2]} 41. Rf6+ {[%clk 0:00:42.3]}
41... Ke7 {[%clk 0:00:41.5]} 42. Rg6 {[%clk 0:00:42.5]} 42... Rxg6 {[%clk
0:00:39.9]} 43. Bxg6 {[%clk 0:00:42.3]} 43... Nxa4 {[%clk 0:00:39.9]} 44. g8=Q
{[%clk 0:00:42.5]} 44... Kd6 {[%clk 0:00:39.6]} 45. Qf8+ {[%clk 0:00:36.2]}
45... Kd5 {[%clk 0:00:40.7]} 46. Bxh5 {[%clk 0:00:34.4]} 46... Nc3+ {[%clk
0:00:39.6]} 47. Kc2 {[%clk 0:00:35]} 47... Nb5 {[%clk 0:00:40.5]} 48. Bf3+
{[%clk 0:00:35.7]} 48... Kc4 {[%clk 0:00:41.6]} 49. Be2+ {[%clk 0:00:35.9]} 1-0

[Event "*** Titled Tuesday Blitz"]
[Site "Chess.com"]
[Date "2018.06.05"]
[Round "6"]
[White "Gr3egor"]
[Black "nOcHeaTiNgKiD"]
[Result "0-1"]
[WhiteElo "2346"]
[BlackElo "2342"]
[TimeControl "180+2"]
[EndTime "14:28:20 PDT"]
[Termination "nOcHeaTiNgKiD won on time"]

1. d4 {[%clk 0:03:01.9]} 1... Nf6 {[%clk 0:02:57.5]} 2. c4 {[%clk 0:03:02.8]}
2... e6 {[%clk 0:02:57.9]} 3. Nc3 {[%clk 0:03:04]} 3... Bb4 {[%clk 0:02:58.4]}
4. Qc2 {[%clk 0:03:05.1]} 4... d5 {[%clk 0:02:58.6]} 5. Bg5 {[%clk 0:03:04.4]}
5... h6 {[%clk 0:02:49.2]} 6. Bxf6 {[%clk 0:03:05]} 6... Qxf6 {[%clk 0:02:49.8]}
7. e3 {[%clk 0:03:06.5]} 7... O-O {[%clk 0:02:46.6]} 8. Nf3 {[%clk 0:03:07.5]}
8... dxc4 {[%clk 0:02:43.6]} 9. Bxc4 {[%clk 0:03:08.2]} 9... Nd7 {[%clk
0:02:36.8]} 10. O-O {[%clk 0:03:08.7]} 10... Bxc3 {[%clk 0:02:32.9]} 11. bxc3
{[%clk 0:03:08.6]} 11... b6 {[%clk 0:02:25.1]} 12. Bd3 {[%clk 0:02:57.2]} 12...
Bb7 {[%clk 0:02:24.1]} 13. Bh7+ {[%clk 0:02:57.1]} 13... Kh8 {[%clk 0:02:24.9]}
14. Be4 {[%clk 0:02:58.8]} 14... Bxe4 {[%clk 0:02:16.8]} 15. Qxe4 {[%clk
0:03:00.7]} 15... c5 {[%clk 0:02:18.4]} 16. Rac1 {[%clk 0:02:58.4]} 16... Qe7
{[%clk 0:02:11.6]} 17. d5 {[%clk 0:02:56.4]} 17... Nf6 {[%clk 0:02:10.9]} 18.
Qe5 {[%clk 0:02:51.4]} 18... Nxd5 {[%clk 0:02:10.5]} 19. Rfd1 {[%clk 0:02:52.6]}
19... Qf6 {[%clk 0:02:06.7]} 20. Qxf6 {[%clk 0:02:41.7]} 20... Nxf6 {[%clk
0:02:07.4]} 21. Ne5 {[%clk 0:02:40.3]} 21... Kg8 {[%clk 0:02:06]} 22. f3 {[%clk
0:02:40.1]} 22... Rfd8 {[%clk 0:02:03.1]} 23. e4 {[%clk 0:02:38.6]} 23... Kf8
{[%clk 0:01:59.1]} 24. Kf2 {[%clk 0:02:38.6]} 24... Rac8 {[%clk 0:01:42]} 25.
Ke3 {[%clk 0:02:36.9]} 25... g6 {[%clk 0:01:28.4]} 26. c4 {[%clk 0:02:33.7]}
26... Ke8 {[%clk 0:01:22.7]} 27. g4 {[%clk 0:02:30.1]} 27... Nd7 {[%clk
0:01:21.8]} 28. Nd3 {[%clk 0:02:24.3]} 28... Ke7 {[%clk 0:01:18.9]} 29. e5
{[%clk 0:02:24.8]} 29... Nb8 {[%clk 0:01:17]} 30. Nf2 {[%clk 0:02:25.4]} 30...
Nc6 {[%clk 0:01:16.6]} 31. f4 {[%clk 0:02:26.9]} 31... Rd4 {[%clk 0:01:16.8]}
32. Ne4 {[%clk 0:02:27.8]} 32... Rcd8 {[%clk 0:01:15.9]} 33. Nd6 {[%clk
0:02:28.8]} 33... f6 {[%clk 0:01:14.7]} 34. Rxd4 {[%clk 0:02:28.7]} 34... Nxd4
{[%clk 0:01:06.8]} 35. Ke4 {[%clk 0:02:28.3]} 35... g5 {[%clk 0:01:04.7]} 36.
fxg5 {[%clk 0:01:42.4]} 36... fxe5 {[%clk 0:01:04.1]} 37. gxh6 {[%clk
0:01:42.4]} 37... Rxd6 {[%clk 0:00:56.9]} 38. Rf1 {[%clk 0:01:36.5]} 38... Rd8
{[%clk 0:00:53]} 39. Kxe5 {[%clk 0:01:36.3]} 39... Nc6+ {[%clk 0:00:46.4]} 40.
Ke4 {[%clk 0:01:37.3]} 40... Rd4+ {[%clk 0:00:45.6]} 41. Kf3 {[%clk 0:01:38.8]}
41... Ne5+ {[%clk 0:00:45.3]} 42. Kg3 {[%clk 0:01:40.1]} 42... Rxg4+ {[%clk
0:00:45.1]} 43. Kh3 {[%clk 0:01:41.5]} 43... Rg6 {[%clk 0:00:45.5]} 0-1

[Event "*** Titled Tuesday Blitz"]
[Site "Chess.com"]
[Date "2018.06.05"]
[Round "6"]
[White "Firouzja2003"]
[Black "Rakhmanov_Aleksandr"]
[Result "1/2-1/2"]
[WhiteElo "2935"]
[BlackElo "2709"]
[TimeControl "180+2"]
[EndTime "14:28:26 PDT"]
[Termination "Game drawn by repetition"]

1. e4 {[%clk 0:03:01.9]} 1... c5 {[%clk 0:03:00.8]} 2. Nf3 {[%clk 0:03:01.8]}
2... Nf6 {[%clk 0:03:02]} 3. e5 {[%clk 0:03:01.7]} 3... Nd5 {[%clk 0:03:02.6]}
4. Nc3 {[%clk 0:03:03]} 4... Nxc3 {[%clk 0:03:03.4]} 5. dxc3 {[%clk 0:03:03.8]}
5... Nc6 {[%clk 0:03:04.9]} 6. Bc4 {[%clk 0:03:04.9]} 6... e6 {[%clk 0:03:05.2]}
7. Bf4 {[%clk 0:03:05.3]} 7... Qb6 {[%clk 0:03:05.1]} 8. Qc1 {[%clk 0:03:05.3]}
8... h6 {[%clk 0:03:03.7]} 9. O-O {[%clk 0:02:59.3]} 9... Qc7 {[%clk 0:03:01.8]}
10. Re1 {[%clk 0:02:53.1]} 10... b6 {[%clk 0:03:02.8]} 11. Qd2 {[%clk
0:02:41.9]} 11... Bb7 {[%clk 0:03:03.7]} 12. Rad1 {[%clk 0:02:41.3]} 12... O-O-O
{[%clk 0:03:04]} 13. h4 {[%clk 0:02:30]} 13... Be7 {[%clk 0:02:59.3]} 14. Qe3
{[%clk 0:02:17.7]} 14... g5 {[%clk 0:01:27.8]} 15. hxg5 {[%clk 0:01:53.3]} 15...
hxg5 {[%clk 0:01:29.7]} 16. Nxg5 {[%clk 0:01:51.5]} 16... Rdg8 {[%clk
0:01:03.4]} 17. Bf1 {[%clk 0:01:50.1]} 17... Rh5 {[%clk 0:00:51.1]} 18. Nxf7
{[%clk 0:01:17.2]} 18... Rg7 {[%clk 0:00:44.7]} 19. Nh6 {[%clk 0:00:42.9]} 19...
Qd8 {[%clk 0:00:25.5]} 20. f3 {[%clk 0:00:24.1]} 20... c4 {[%clk 0:00:25]} 21.
Ng4 {[%clk 0:00:15.1]} 21... Bc5 {[%clk 0:00:24.4]} 22. Rd4 {[%clk 0:00:16.1]}
22... Qh4 {[%clk 0:00:22.8]} 23. Red1 {[%clk 0:00:12.5]} 23... Bxd4 {[%clk
0:00:15.8]} 24. cxd4 {[%clk 0:00:14.4]} 24... Ne7 {[%clk 0:00:16.1]} 25. Qa3
{[%clk 0:00:10.9]} 25... Nd5 {[%clk 0:00:16.6]} 26. Qf8+ {[%clk 0:00:10.4]}
26... Kc7 {[%clk 0:00:15.8]} 27. Qd6+ {[%clk 0:00:10.7]} 27... Kc8 {[%clk
0:00:15.2]} 28. Qf8+ {[%clk 0:00:11.7]} 28... Kc7 {[%clk 0:00:16.6]} 29. Qd6+
{[%clk 0:00:12.3]} 29... Kc8 {[%clk 0:00:14.3]} 30. Qf8+ {[%clk 0:00:13.3]}
30... Kc7 {[%clk 0:00:12.8]} 31. Qd6+ {[%clk 0:00:06.5]} 31... Kc8 {[%clk
0:00:13.7]} 32. Qf8+ {[%clk 0:00:07.5]} 32... Kc7 {[%clk 0:00:15]} 33. Qd6+
{[%clk 0:00:06.6]} 33... Kc8 {[%clk 0:00:16]} 34. Qf8+ {[%clk 0:00:05.1]}
1/2-1/2